fUSD/lending_fUSD_20251026
["ID","MTS","AMOUNT","RATE_DAILY","PERIOD"]
[392412173,1761447032856,-500.0,0.00032988,9]
[392412174,1761447032868,-500.0,0.00032988,9]
[392412175,1761447032880,-380.0,0.00032988,9]
[392412176,1761447032894,-500.0,0.00032988,9]
[392412177,1761447032905,-500.0,0.00032988,9]
[392412178,1761447032917,-500.0,0.00032988,9]
[392412179,1761447032930,-500.0,0.00032988,9]
[392412180,1761447032943,-500.0,0.00032988,9]
[392412181,1761447032956,-500.0,0.00032988,9]
[392412182,1761447032965,-500.0,0.00032988,9]
[392412183,1761447032974,-500.0,0.00032988,9]
[392412184,1761447032983,-500.0,0.00032988,9]
[392412185,1761447032992,-500.0,0.00032988,9]
[392412186,1761447033002,-500.0,0.00032988,9]
[392412187,1761447033011,-503.625577,0.00032988,9]
[392412188,1761447033237,-152.439922,0.00032988,9]
[392412189,1761447033256,-801.938272,0.00032988,9]
[392412190,1761447033265,-500.0,0.00032988,9]
[392412191,1761447033275,-500.0,0.00032988,9]
[392412192,1761447033284,-500.0,0.00032988,9]
[392412193,1761447033294,-642.69713414,0.00032988,9]
[392412194,1761447033303,-500.0,0.00032988,9]
[392412195,1761447033312,-500.0,0.00032988,9]
[392412196,1761447033321,-500.0,0.00032988,9]
[392412197,1761447033330,-500.0,0.00032988,9]
[392412198,1761447033339,-500.0,0.00032988,9]
[392412199,1761447033348,-500.0,0.00032988,9]
[392412200,1761447033357,-500.0,0.00032988,9]
[392412201,1761447033367,-500.0,0.00032988,9]
[392412202,1761447033376,-500.0,0.00032988,9]
[392412203,1761447033385,-500.0,0.00032988,9]
[392412204,1761447033394,-436.1705965,0.00032988,9]
[392412205,1761447033406,-500.0,0.00032988,9]
[392412206,1761447033417,-500.0,0.00032988,9]
[392412207,1761447033426,-500.0,0.00032988,9]
[392412208,1761447033436,-500.0,0.00032988,9]
[392412209,1761447033445,-500.0,0.00032988,9]
[392412210,1761447033454,-500.0,0.00032988,9]
[392412211,1761447033464,-500.0,0.00032988,9]
[392412212,1761447033474,-500.0,0.00032988,9]
[392412213,1761447033483,-500.0,0.00032988,9]
[392412214,1761447033492,-500.0,0.00032988,9]
[392412215,1761447033502,-500.0,0.00032988,9]
[392412216,1761447033511,-500.0,0.00032988,9]
[392412217,1761447033520,-208.24830215,0.00032988,2]
[392412218,1761447033530,-500.0,0.00032988,9]
[392412219,1761447033538,-500.0,0.00032988,9]
[392412220,1761447033548,-500.0,0.00032988,9]
[392412221,1761447033557,-500.0,0.00032988,2]
[392412222,1761447033566,-500.0,0.00032988,9]
[392412223,1761447033575,-500.0,0.00032988,9]
[392412224,1761447033585,-500.0,0.00032988,9]
[392412225,1761447033594,-500.0,0.00032988,9]
[392412226,1761447033603,-500.0,0.00032988,9]
[392412227,1761447033614,-500.0,0.00032988,9]
[392412228,1761447033623,-500.0,0.00032988,9]
[392412229,1761447033632,-500.0,0.00032988,9]
[392412230,1761447033644,-500.0,0.00032988,9]
[392412231,1761447033654,-532.75,0.00032988,9]
[392412232,1761447033664,-500.0,0.00032988,9]
[392412233,1761447033674,-500.0,0.00032988,9]
[392412234,1761447033684,-500.0,0.00032988,9]
[392412235,1761447033694,-500.0,0.00032988,9]
[392412236,1761447033703,-500.0,0.00032988,9]
[392412237,1761447033712,-242.8582155,0.00032988,2]
[392412238,1761447033722,-511.0,0.00032988,9]
[392412239,1761447033731,-500.0,0.00032988,9]
[392412240,1761447033740,-567.94500611,0.00032988,9]
[392412241,1761447033749,-500.0,0.00032988,9]
[392412242,1761447033758,-500.0,0.00032988,9]
[392412243,1761447033768,-500.0,0.00032988,9]
[392412244,1761447033778,-624.07836345,0.00032988,9]
[392412245,1761447033791,-500.0,0.00032988,9]
[392412246,1761447033800,-500.0,0.00032988,9]
[392412247,1761447033809,-500.0,0.00032988,9]
[392412248,1761447033821,-500.0,0.00032988,9]
[392412249,1761447033831,-500.0,0.00032988,9]
[392412250,1761447033840,-500.0,0.00032988,9]
[392412251,1761447033849,-500.0,0.00032988,9]
[392412252,1761447033858,-575.48,0.00032988,9]
[392412253,1761447033867,-500.0,0.00032988,9]
[392412254,1761447033876,-500.0,0.00032988,9]
[392412255,1761447033886,-701.49,0.00032988,9]
[392412256,1761447033895,-500.0,0.00032988,9]
[392412257,1761447033904,-500.0,0.00032988,9]
[392412258,1761447033914,-500.0,0.00032988,9]
[392412259,1761447033923,-500.0,0.00032988,9]
[392412260,1761447033933,-500.0,0.00032988,9]
[392412261,1761447033942,-500.0,0.00032988,9]
[392412262,1761447033952,-500.0,0.00032988,9]
[392412263,1761447033962,-500.0,0.00032988,9]
[392412264,1761447033971,-500.0,0.00032988,9]
[392412265,1761447033980,-500.0,0.00032988,9]
[392412266,1761447033990,-500.0,0.00032988,9]
[392412267,1761447033999,-500.0,0.00032988,9]
[392412268,1761447034009,-500.0,0.00032988,9]
[392412269,1761447034018,-500.0,0.00032988,9]
[392412270,1761447034027,-509.18841338,0.00032988,9]
[392412271,1761447034037,-500.0,0.00032988,7]
[392412272,1761447034046,-500.0,0.00032988,9]
[392412273,1761447034056,-500.0,0.00032988,9]
[392412274,1761447034065,-187.99874393,0.00032988,9]
[392412275,1761447034074,-500.0,0.00032988,9]
[392412276,1761447034083,-500.0,0.00032988,9]
[392412277,1761447034093,-500.0,0.00032988,9]
[392412278,1761447034102,-500.0,0.00032988,9]
[392412279,1761447034112,-500.0,0.00032988,9]
[392412280,1761447034121,-500.0,0.00032988,9]
[392412281,1761447034130,-500.0,0.00032988,9]
[392412282,1761447034139,-500.0,0.00032988,9]
[392412283,1761447034150,-500.0,0.00032988,9]
[392412284,1761447034163,-500.0,0.00032988,9]
[392412285,1761447034173,-500.0,0.00032988,9]
[392412286,1761447034182,-500.0,0.00032988,9]
[392412287,1761447034191,-500.0,0.00032988,9]
[392412288,1761447034200,-500.0,0.00032988,9]
[392412289,1761447034210,-500.0,0.00032988,9]
[392412290,1761447034220,-500.0,0.00032988,9]
[392412291,1761447034229,-500.0,0.00032988,9]
[392412292,1761447034239,-500.0,0.00032988,9]
[392412293,1761447034248,-197.12024824,0.00032988,9]
[392412294,1761447039532,-300.0,0.00032316,20]
[392412303,1761447045577,-240.76401992,0.00032316,20]
[392412304,1761447045587,-302.87975176,0.00032988,9]
[392412305,1761447045597,-500.0,0.00032988,9]
[392412306,1761447045606,-59.93282196,0.00032988,9]
[392412307,1761447045622,-314.426,0.00032988,9]
[392412308,1761447045637,-125.64117804,0.00032988,9]
[392412309,1761447045646,-500.0,0.00032988,9]
[392412310,1761447045655,-311.03482096,0.00032988,9]
[392412512,1761447322992,2449.99882213,0.00036907,50]
[392412650,1761448046076,858.0,0.00036907,120]
[392412652,1761448126442,952.0,0.00017,10]
[392412662,1761448231886,-500.0,0.00031456,7]
[392412663,1761448231896,-500.0,0.00031456,7]
[392412664,1761448231906,-152.0,0.00031639,3]
[392412665,1761448231917,-1600.0,0.00031702,3]
[392412666,1761448231928,-649.22812699,0.00031703,2]
[392412678,1761448237609,-6980.92187301,0.00031703,2]
[392412679,1761448237620,-400.0,0.0003176,3]
[392412680,1761448237630,-400.0,0.00031761,3]
[392412681,1761448237640,-302.11,0.00031762,2]
[392412682,1761448237649,-300.0,0.00031858,7]
[392412683,1761448237659,-150.0,0.00031861,2]
[392412684,1761448237668,-168.0,0.00031917,2]
[392412685,1761448237678,-150.0,0.00031917,2]
[392412686,1761448237687,-327.48,0.00032,2]
[392412687,1761448237697,-1000.0,0.00032077,2]
[392412688,1761448237706,-436.67,0.00032077,2]
[392412689,1761448237716,-651.0,0.00032177,3]
[392412690,1761448237725,-150.0,0.00032177,2]
[392412691,1761448237735,-574.09,0.00032178,2]
[392412692,1761448237744,-2419.76,0.00032178,2]
[392412693,1761448237754,-433.61,0.00032178,2]
[392412694,1761448237763,-547.92,0.00032178,2]
[392412695,1761448237773,-414.6,0.00032178,2]
[392412696,1761448237784,-547.92,0.00032178,2]
[392412697,1761448237794,-414.6,0.00032178,2]
[392412698,1761448237803,-414.6,0.00032178,2]
[392412699,1761448237813,-231.0,0.00032231,2]
[392412700,1761448237822,-150.0,0.00032232,2]
[392412701,1761448237832,-231.0,0.00032237,2]
[392412702,1761448237841,-500.0,0.00032278,7]
[392412703,1761448237851,-231.0,0.00032364,7]
[392412704,1761448237860,-231.0,0.00032397,2]
[392412705,1761448237870,-152.0,0.00032447,4]
[392412706,1761448237879,-231.0,0.00032508,2]
[392412707,1761448237888,-166.66,0.00032792,2]
[392412708,1761448237898,-900.0,0.000328,11]
[392412709,1761448237908,-476.61195222,0.00032821,2]
[392412710,1761448237917,-151.0,0.0003287,2]
[392412712,1761448237928,-151.0,0.0003287,2]
[392412714,1761448237939,-157.30807833,0.0003287,2]
[392412716,1761448237948,-170.95993208,0.00032887,2]
[392412718,1761448237958,-5252.1275223,0.00032888,2]
[392412720,1761448237967,-182.552,0.00032889,34]
[392412722,1761448237976,-500.0,0.00032889,7]
[392412723,1761448237986,-500.0,0.00032889,7]
[392412724,1761448237996,-500.0,0.00032889,7]
[392412725,1761448238006,-500.0,0.00032889,7]
[392412726,1761448238015,-433.4417933,0.00032889,7]
[392412727,1761448238025,-500.0,0.00032889,7]
[392412728,1761448238035,-500.0,0.00032889,7]
[392412729,1761448238044,-500.0,0.00032889,7]
[392412730,1761448238054,-500.0,0.00032889,7]
[392412731,1761448238063,-500.0,0.00032889,7]
[392412732,1761448238072,-500.0,0.00032889,7]
[392412733,1761448238083,-500.0,0.00032889,7]
[392412734,1761448238093,-500.0,0.00032889,7]
[392412735,1761448238103,-500.0,0.00032889,7]
[392412736,1761448238112,-500.0,0.00032889,7]
[392412737,1761448238122,-500.0,0.00032889,7]
[392412738,1761448238131,-500.0,0.00032889,7]
[392412739,1761448238141,-500.0,0.00032889,7]
[392412740,1761448238151,-500.0,0.00032889,7]
[392412741,1761448238161,-500.0,0.00032889,7]
[392412742,1761448238172,-500.0,0.00032889,7]
[392412743,1761448238182,-500.0,0.00032889,7]
[392412744,1761448238192,-500.0,0.00032889,7]
[392412745,1761448238202,-500.0,0.00032889,7]
[392412746,1761448238212,-500.0,0.00032889,7]
[392412747,1761448238222,-500.0,0.00032889,7]
[392412748,1761448238233,-500.0,0.00032889,7]
[392412749,1761448238243,-6427.92230239,0.0003289,2]
[392412750,1761448238264,-2241.37726794,0.0003289,2]
[392412751,1761448238291,-923.61610295,0.0003289,2]
[392412755,1761448240174,-96202.37692672,0.0003289,2]
[392412756,1761448240183,-1100.17580077,0.0003289,2]
[392412757,1761448240193,-5000.0,0.000329,2]
[392412758,1761448240203,-1900.0,0.000329,12]
[392412759,1761448240212,-505.34674532,0.00032973,2]
[392412760,1761448240223,-512.14099977,0.00032973,5]
[392412762,1761448240232,-500.0,0.00032973,5]
[392412764,1761448240241,-500.0,0.00032973,5]
[392412766,1761448240250,-2000.0,0.00032974,3]
[392412767,1761448240259,-6458.0,0.00032975,2]
[392412768,1761448240268,-10623.9068502,0.00032977,3]
[392412769,1761448240277,-173.82,0.00032977,2]
[392412770,1761448240287,-173.82,0.00032977,2]
[392412771,1761448240296,-685.24,0.00032977,2]
[392412772,1761448240305,-31871.7205507,0.00032978,3]
[392412773,1761448240314,-180.671187,0.00032978,30]
[392412774,1761448240323,-166.32567,0.00032978,30]
[392412775,1761448240333,-216.22795601,0.00032978,7]
[392412776,1761448240342,-21247.8137004,0.00032979,3]
[392412777,1761448240351,-500.0,0.00032985,9]
[392412778,1761448240361,-500.0,0.00032985,9]
[392412779,1761448240370,-500.0,0.00032985,9]
[392412780,1761448240379,-500.0,0.00032985,9]
[392412781,1761448240389,-500.0,0.00032985,9]
[392412782,1761448240398,-554.49568731,0.00032985,9]
[392412783,1761448240407,-500.0,0.00032985,9]
[392412784,1761448240416,-500.0,0.00032985,2]
[392412785,1761448240426,-500.0,0.00032985,2]
[392412786,1761448240435,-500.0,0.00032986,9]
[392412787,1761448240445,-179.48679108,0.00032986,9]
[392412788,1761448240454,-500.0,0.00032986,9]
[392412789,1761448240465,-500.0,0.00032986,2]
[392412790,1761448240475,-1136.41,0.00032986,9]
[392412791,1761448240484,-500.0,0.00032986,9]
[392412793,1761448240496,-500.0,0.00032986,9]
[392412795,1761448240505,-727.8,0.00032986,9]
[392412797,1761448240514,-546.51,0.00032986,9]
[392412799,1761448240523,-500.0,0.00032986,9]
[392412801,1761448240532,-500.0,0.00032986,9]
[392412803,1761448240541,-500.0,0.00032986,9]
[392412805,1761448240550,-500.0,0.00032986,9]
[392412807,1761448240559,-436.77964813,0.00032987,2]
[392412809,1761448240568,-500.0,0.00032987,9]
[392412810,1761448240577,-500.0,0.00032987,9]
[392412812,1761448240586,-500.0,0.00032987,9]
[392412814,1761448240595,-500.0,0.00032987,9]
[392412816,1761448240604,-500.0,0.00032987,9]
[392412818,1761448240613,-500.0,0.00032987,9]
[392412821,1761448240623,-500.0,0.00032987,9]
[392412823,1761448240632,-500.0,0.00032987,9]
[392412824,1761448240642,-500.0,0.00032987,9]
[392412826,1761448240651,-500.0,0.00032987,9]
[392412828,1761448240660,-500.0,0.00032987,9]
[392412831,1761448240670,-500.0,0.00032987,9]
[392412833,1761448240679,-500.0,0.00032987,9]
[392412835,1761448240688,-500.0,0.00032987,9]
[392412836,1761448240698,-500.0,0.00032987,9]
[392412838,1761448240707,-500.0,0.00032987,9]
[392412840,1761448240716,-500.0,0.00032987,9]
[392412841,1761448240726,-416.2542501,0.00032987,9]
[392412842,1761448240735,-500.0,0.00032987,9]
[392412843,1761448240745,-500.0,0.00032987,9]
[392412844,1761448240754,-510.55,0.00032987,9]
[392412845,1761448240763,-500.0,0.00032987,9]
[392412846,1761448240772,-500.0,0.00032987,9]
[392412847,1761448240782,-500.0,0.00032987,9]
[392412848,1761448240791,-500.0,0.00032987,9]
[392412849,1761448240801,-500.0,0.00032987,9]
[392412850,1761448240810,-500.0,0.00032987,9]
[392412851,1761448240819,-208.047,0.00032987,2]
[392412852,1761448240828,-500.0,0.00032987,9]
[392412853,1761448240837,-500.0,0.00032987,9]
[392412854,1761448240847,-500.0,0.00032987,9]
[392412855,1761448240856,-500.0,0.00032987,9]
[392412856,1761448240866,-500.0,0.00032987,9]
[392412857,1761448240875,-500.0,0.00032987,9]
[392412858,1761448240884,-500.0,0.00032987,9]
[392412859,1761448240894,-500.0,0.00032987,9]
[392412861,1761448240903,-500.0,0.00032987,9]
[392412862,1761448240912,-500.0,0.00032987,9]
[392412863,1761448240921,-500.0,0.00032987,9]
[392412864,1761448240931,-500.0,0.00032987,9]
[392412865,1761448240940,-500.0,0.00032987,9]
[392412866,1761448240949,-500.0,0.00032987,9]
[392412867,1761448240958,-500.0,0.00032987,9]
[392412868,1761448240967,-500.0,0.00032987,9]
[392412869,1761448240977,-500.0,0.00032987,9]
[392412870,1761448240986,-223.98060596,0.00032987,9]
[392412871,1761448241133,-500.0,0.00032987,9]
[392412872,1761448241143,-503.625577,0.00032987,9]
[392412873,1761448241153,-500.0,0.00032987,9]
[392412874,1761448241162,-152.439922,0.00032987,9]
[392412875,1761448241171,-500.0,0.00032987,9]
[392412876,1761448241180,-500.0,0.00032987,7]
[392412877,1761448241190,-500.0,0.00032987,9]
[392412878,1761448241199,-500.0,0.00032987,9]
[392412879,1761448241211,-500.0,0.00032987,9]
[392412880,1761448241220,-500.0,0.00032987,9]
[392412881,1761448241229,-500.0,0.00032987,9]
[392412882,1761448241239,-801.938272,0.00032987,9]
[392412883,1761448241248,-500.0,0.00032987,9]
[392412884,1761448241257,-500.0,0.00032987,9]
[392412885,1761448241266,-500.0,0.00032987,9]
[392412886,1761448241275,-500.0,0.00032987,9]
[392412887,1761448241284,-500.0,0.00032987,9]
[392412888,1761448241293,-500.0,0.00032987,9]
[392412889,1761448241302,-500.0,0.00032987,9]
[392412890,1761448241311,-194.96133938,0.00032987,9]
[392412891,1761448241320,-500.0,0.00032987,9]
[392412892,1761448241329,-500.0,0.00032987,9]
[392412893,1761448241338,-500.0,0.00032987,9]
[392412894,1761448241347,-500.0,0.00032987,9]
[392412895,1761448241356,-500.0,0.00032987,9]
[392412896,1761448241365,-500.0,0.00032987,9]
[392412897,1761448241374,-500.0,0.00032987,9]
[392412898,1761448241383,-500.0,0.00032987,9]
[392412899,1761448241393,-500.0,0.00032987,9]
[392412900,1761448241401,-500.0,0.00032987,9]
[392412901,1761448241410,-267.54653757,0.00032987,9]
[392412902,1761448241419,-500.0,0.00032987,9]
[392412903,1761448241428,-500.0,0.00032987,9]
[392412904,1761448241437,-500.0,0.00032987,9]
[392412905,1761448241445,-500.0,0.00032987,9]
[392412906,1761448241454,-500.0,0.00032987,9]
[392412907,1761448241464,-500.0,0.00032987,9]
[392412908,1761448241477,-500.0,0.00032987,9]
[392412909,1761448241486,-500.0,0.00032987,9]
[392412910,1761448241495,-500.0,0.00032987,9]
[392412911,1761448241503,-500.0,0.00032987,9]
[392412912,1761448241514,-500.0,0.00032987,9]
[392412913,1761448241523,-500.0,0.00032987,9]
[392412914,1761448241531,-816.23,0.00032987,9]
[392412915,1761448241541,-500.0,0.00032987,9]
[392412916,1761448241550,-500.0,0.00032987,9]
[392412917,1761448241559,-500.0,0.00032987,9]
[392412918,1761448241568,-500.0,0.00032987,9]
[392412919,1761448241577,-500.0,0.00032987,9]
[392412920,1761448241586,-500.0,0.00032987,9]
[392412921,1761448241595,-500.0,0.00032987,9]
[392412922,1761448241604,-500.0,0.00032987,9]
[392412923,1761448241613,-500.0,0.00032987,9]
[392412924,1761448241623,-500.0,0.00032987,9]
[392412925,1761448241632,-500.0,0.00032987,9]
[392412926,1761448241641,-500.0,0.00032987,9]
[392412927,1761448241651,-500.0,0.00032987,9]
[392412928,1761448241660,-500.0,0.00032987,9]
[392412929,1761448241668,-500.0,0.00032987,9]
[392412930,1761448241679,-500.0,0.00032987,9]
[392412931,1761448241689,-500.0,0.00032987,9]
[392412932,1761448241699,-500.0,0.00032987,9]
[392412933,1761448241708,-500.0,0.00032987,9]
[392412934,1761448241717,-500.0,0.00032987,9]
[392412935,1761448241726,-500.0,0.00032987,9]
[392412936,1761448241735,-500.0,0.00032987,9]
[392412937,1761448241744,-500.0,0.00032987,9]
[392412938,1761448241753,-500.0,0.00032987,9]
[392412939,1761448241762,-500.0,0.00032987,9]
[392412940,1761448241771,-500.0,0.00032987,9]
[392412941,1761448241782,-545.03451082,0.00032987,9]
[392412942,1761448241792,-633.4,0.00032987,9]
[392412943,1761448241801,-520.32761045,0.00032987,9]
[392412944,1761448241809,-500.0,0.00032987,9]
[392412945,1761448241819,-500.0,0.00032987,9]
[392412946,1761448241828,-508.2,0.00032987,9]
[392412947,1761448241839,-500.0,0.00032987,9]
[392412948,1761448241849,-265.75353117,0.00032987,9]
[392412949,1761448241859,-500.0,0.00032987,9]
[392412950,1761448241870,-500.0,0.00032987,9]
[392412951,1761448241881,-500.0,0.00032987,9]
[392412952,1761448241890,-500.0,0.00032987,9]
[392412953,1761448241902,-500.0,0.00032987,9]
[392412954,1761448241913,-500.0,0.00032987,9]
[392412955,1761448241923,-500.0,0.00032987,9]
[392412956,1761448241933,-500.0,0.00032987,9]
[392412957,1761448241942,-500.0,0.00032987,9]
[392412958,1761448241952,-500.0,0.00032987,9]
[392412959,1761448241966,-500.0,0.00032987,9]
[392412960,1761448241975,-500.0,0.00032987,9]
[392412961,1761448241985,-500.0,0.00032987,9]
[392412962,1761448241994,-500.0,0.00032987,9]
[392412963,1761448242003,-500.0,0.00032987,9]
[392412964,1761448242012,-500.0,0.00032987,9]
[392412965,1761448242021,-500.0,0.00032987,9]
[392412966,1761448242031,-500.0,0.00032987,2]
[392412967,1761448242041,-500.0,0.00032987,9]
[392412968,1761448242052,-500.0,0.00032987,9]
[392412969,1761448242063,-500.0,0.00032987,9]
[392412970,1761448242073,-500.0,0.00032987,9]
[392412971,1761448242083,-500.0,0.00032987,9]
[392412972,1761448242092,-500.0,0.00032987,9]
[392412973,1761448242102,-500.0,0.00032987,9]
[392412974,1761448242111,-672.26,0.00032987,9]
[392412975,1761448242120,-500.0,0.00032987,9]
[392412976,1761448242130,-500.0,0.00032987,9]
[392412977,1761448242140,-373.95178768,0.00032987,9]
[392412978,1761448242149,-500.0,0.00032987,9]
[392412979,1761448242158,-500.0,0.00032987,9]
[392412980,1761448242168,-629.42493293,0.00032987,9]
[392412981,1761448242177,-500.0,0.00032987,9]
[392412982,1761448242186,-500.0,0.00032987,9]
[392412983,1761448242195,-500.0,0.00032987,9]
[392412984,1761448242204,-634.67,0.00032987,9]
[392412985,1761448242214,-500.0,0.00032987,9]
[392412986,1761448242223,-500.0,0.00032987,9]
[392412987,1761448242234,-500.0,0.00032987,9]
[392412988,1761448242243,-578.62,0.00032987,9]
[392412989,1761448242252,-500.0,0.00032987,9]
[392412990,1761448242261,-500.0,0.00032987,9]
[392412991,1761448242270,-500.0,0.00032987,9]
[392412992,1761448242280,-500.0,0.00032987,9]
[392412993,1761448242289,-500.0,0.00032987,9]
[392412994,1761448242298,-721.12765535,0.00032987,9]
[392412995,1761448242307,-500.0,0.00032987,9]
[392412996,1761448242316,-250.0,0.00032987,9]
[392412997,1761448242326,-747.8093786,0.00032987,9]
[392412998,1761448242335,-250.0,0.00032987,9]
[392412999,1761448242344,-256.92316154,0.00032987,9]
[392413000,1761448242353,-561.75865749,0.00032987,9]
[392413001,1761448242362,-250.0,0.00032987,9]
[392413002,1761448242371,-500.0,0.00032987,9]
[392413003,1761448242380,-250.0,0.00032987,9]
[392413004,1761448242390,-250.0,0.00032987,9]
[392413005,1761448242399,-574.12855637,0.00032987,9]
[392413006,1761448242408,-250.0,0.00032987,9]
[392413007,1761448242417,-595.37131296,0.00032987,9]
[392413008,1761448242427,-250.0,0.00032987,9]
[392413009,1761448242436,-500.0,0.00032987,9]
[392413010,1761448242446,-500.0,0.00032987,9]
[392413012,1761448242455,-617.40005154,0.00032987,9]
[392413013,1761448242467,-250.0,0.00032987,9]
[392413014,1761448242477,-500.0,0.00032987,9]
[392413016,1761448242487,-640.24385345,0.00032987,9]
[392413017,1761448242495,-390.09647559,0.00032987,9]
[392413018,1761448242505,-663.93287602,0.00032987,9]
[392413019,1761448242514,-500.0,0.00032987,9]
[392413020,1761448242524,-500.0,0.00032987,9]
[392413021,1761448242534,-688.49839244,0.00032987,9]
[392413022,1761448242546,-500.0,0.00032987,9]
[392413023,1761448242555,-185.94869459,0.00032987,9]
[392413024,1761448242565,-713.97283296,0.00032987,9]
[392413025,1761448242574,-500.0,0.00032987,9]
[392413026,1761448242582,-565.97926183,0.00032987,9]
[392413027,1761448242592,-740.38982778,0.00032987,9]
[392413028,1761448242601,-500.0,0.00032987,9]
[392413029,1761448242610,-500.0,0.00032987,9]
[392413030,1761448242619,-767.7842514,0.00032987,9]
[392413031,1761448242628,-224.58986623,0.00032987,9]
[392413032,1761448242637,-500.0,0.00032987,9]
[392413033,1761448242646,-500.0,0.00032987,9]
[392413034,1761448242656,-796.19226871,0.00032987,9]
[392413035,1761448242665,-500.0,0.00032987,9]
[392413036,1761448242674,-500.0,0.00032987,9]
[392413037,1761448242683,-500.0,0.00032987,9]
[392413038,1761448242693,-955.40399911,0.00032987,9]
[392413039,1761448242702,-500.0,0.00032987,9]
[392413040,1761448242710,-500.0,0.00032987,9]
[392413041,1761448242719,-500.0,0.00032987,9]
[392413042,1761448242732,-500.0,0.00032987,9]
[392413043,1761448242741,-500.0,0.00032987,9]
[392413044,1761448242751,-586.50048221,0.00032987,9]
[392413045,1761448242760,-322.6107,0.00032987,9]
[392413046,1761448242769,-500.0,0.00032987,9]
[392413047,1761448242778,-500.0,0.00032987,9]
[392413048,1761448242787,-500.0,0.00032987,9]
[392413049,1761448242796,-500.0,0.00032987,9]
[392413050,1761448242805,-500.0,0.00032987,9]
[392413051,1761448242814,-500.0,0.00032987,9]
[392413052,1761448242823,-500.0,0.00032987,9]
[392413053,1761448242832,-250.0,0.00032987,9]
[392413054,1761448242841,-250.0,0.00032987,9]
[392413055,1761448242850,-250.0,0.00032987,9]
[392413056,1761448242859,-250.0,0.00032987,9]
[392413057,1761448242869,-340.59363067,0.00032987,9]
[392413058,1761448242878,-300.57136138,0.00032987,9]
[392413059,1761448242887,-500.0,0.00032987,9]
[392413060,1761448242896,-500.0,0.00032987,9]
[392413061,1761448242905,-500.0,0.00032987,9]
[392413062,1761448242914,-500.0,0.00032987,9]
[392413063,1761448242923,-213.23083599,0.00032987,9]
[392413064,1761448242932,-389.83105114,0.00032987,9]
[392413065,1761448242941,-500.0,0.00032987,9]
[392413066,1761448242950,-500.0,0.00032987,9]
[392413067,1761448242959,-500.0,0.00032987,9]
[392413068,1761448242968,-500.0,0.00032987,9]
[392413069,1761448242978,-500.0,0.00032987,9]
[392413070,1761448242987,-500.0,0.00032987,9]
[392413071,1761448242996,-500.0,0.00032987,9]
[392413072,1761448243005,-500.0,0.00032987,9]
[392413073,1761448243014,-500.0,0.00032987,9]
[392413074,1761448243022,-500.0,0.00032987,9]
[392413075,1761448243031,-714.17,0.00032987,9]
[392413076,1761448243040,-500.0,0.00032987,9]
[392413077,1761448243049,-500.0,0.00032987,9]
[392413078,1761448243058,-500.0,0.00032987,9]